[Event "German Bundesliga 2024-25"]
[Site "Germany"]
[Date "2024.10.06"]
[Round "2.12"]
[White "Cheng, Bobby"]
[Black "Ikonnikov, Vyacheslav"]
[Result "1-0"]
[Annotator "TA"]
[ECO "E11"]
[WhiteElo "2594"]
[BlackElo "2467"]
[PlyCount "151"]
[EventDate "2024.09.27"]
[EventType "team-tourn"]
[EventCountry "GER"]
[SourceTitle "playchess.com"]
[Source "ChessBase"]
[SourceQuality "1"]
[WhiteTeam "Werder Bremen"]
[BlackTeam "Bad Mergentheim"]
[TimeControl "40/5400+30:1800+30"]

{[%evp 54,151,47,42,119,111,106,0,68,35,104,0,65,55,72,68,66,66,61,63,59,49,54,54,93,91,108,108,118,106,115,44,61,40,64,70,68,60,123,122,124,117,122,117,145,90,93,93,89,80,80,63,80,8,10,8,8,8,8,8,8,8,8,8,8,0,829,732,641,582,1121,1114,1114,1114,1114,1121,1121,1114,1095,1114,1027,1010,1768,5760,4493,1775,29967,6593,29975,29979,29979,29980,29980,29981,29981,29982,29985,29986,29986,29987]} 1. d4 {[%emt 0:00:11]} Nf6 {[%emt 0:00:13]} 2. c4 {[%emt 0:00:06]} e6 {[%emt 0:00:16]} 3. Nf3 {[%emt 0:00:05]} Bb4+ {[%emt 0:00:20]} 4. Nbd2 {[%emt 0:00:06]} d5 {[%emt 0:00:54]} 5. Qa4+ {[%emt 0:01:54]} Nc6 {[%emt 0:00:10]} 6. a3 {[%emt 0:00:04]} Be7 {[%emt 0:01:38]} 7. e3 {[%emt 0:01:53]} a5 {[%emt 0:01:53]} 8. Qc2 {[%emt 0:03:02]} a4 {[%emt 0:02:48]} 9. Bd3 {[%emt 0:26:24]} Bd7 {[%emt 0:01:26]} 10. O-O {[%emt 0:03:53]} O-O {[%emt 0:03:24]} 11. e4 {[%emt 0:03:25]} dxe4 {[%emt 0:05:12]} 12. Nxe4 {[%emt 0:00:04]} Nxe4 {[%emt 0:00:50]} 13. Bxe4 {[%emt 0:00:04]} f5 {[%emt 0:00:51]} 14. Bd3 {[%emt 0:02:29]} Bf6 {[%emt 0:01:26]} 15. Be3 {[%emt 0:15:42]} e5 {[%emt 0:04:18]} 16. dxe5 {[%emt 0:05:40]} Nxe5 {[%emt 0:00:08]} 17. Nxe5 {[%emt 0:01:23]} Bxe5 {[%emt 0:00:06]} 18. f4 {[%emt 0:00:07]} Bf6 {[%emt 0:00:31]} 19. Rad1 {[%emt 0:00:20]} Qc8 {[%emt 0:01:11]} 20. c5 {[%emt 0:02:48]} Kh8 {[%emt 0:15:49]} 21. Bc4 {[%emt 0:00:58]} Bc6 {[%emt 0:06:53]} 22. Bd4 {[%emt 0:02:25]} Qe8 {[%emt 0:02:25]} 23. Bxf6 {[%emt 0:01:37]} Rxf6 {[%emt 0:27:13]} 24. Rfe1 {[%emt 0:00:07]} Qf8 {[%emt 0:00:40]} 25. Bd5 {[%emt 0:02:43]} h6 {[%emt 0:14:18]} 26. Bxc6 {[%emt 0:06:27]} Rxc6 {[%emt 0:02:25]} 27. Re5 {[%emt 0:00:02]} b6 {[%emt 0:00:58]} 28. Rxf5 {[%emt 0:12:16]} Qe8 {[%emt 0:00:11]} ({Black should try} 28... Qe7 $14) 29. Re5 $16 {[%emt 0:03:59]} Qf8 {[%emt 0:00:07]} 30. Rf5 {[%emt 0:00:53]} Qe8 {[%emt 0:00:08]} 31. Qf2 {[%emt 0:04:07]} Rd8 {[%emt 0:05:34]} (31... Rxc5 $14 32. Rxc5 bxc5) 32. Re1 {[%emt 0:00:42]} (32. Rxd8 $1 $16 Qxd8 33. h3) 32... Qd7 {[%emt 0:00:19]} (32... Qg6 $1 $11 33. Rfe5 Rxc5) 33. Rfe5 $14 {[%emt 0:00:28]} Rxc5 {[%emt 0:00:30]} 34. Rxc5 {[%emt 0:00:14]} bxc5 {[%emt 0:00:04]} 35. Qxc5 {[%emt 0:00:36]} Qd4+ {[%emt 0:00:17]} 36. Qxd4 {[%emt 0:00:02]} Rxd4 {[%emt 0:00:04]} 37. f5 {[%emt 0:00:49]} Kg8 {[%emt 0:01:43]} 38. Re2 {[%emt 0:00:51]} Rd5 {[%emt 0:00:55]} 39. Rc2 {[%emt 0:00:46]} Rxf5 {[%emt 0:00:36]} 40. Rxc7 {[%emt 0:00:00]} Rb5 {[%emt 0:00:04]} 41. Rc2 {[%emt 0:01:57]} Kf7 {[%emt 0:03:58]} 42. Kf2 {[%emt 0:00:55]} ({Better is} 42. Rc4 $16) 42... Rb3 {[%emt 0:07:14]} 43. Ke1 {[%emt 0:05:09]} Ke6 {[%emt 0:01:38]} 44. Kd1 {[%emt 0:01:14]} Kd5 {[%emt 0:01:14]} 45. Re2 {[%emt 0:03:04]} Kd4 {[%emt 0:04:39]} (45... g5 $14) 46. Kc2 $16 {[%emt 0:00:19]} Rb7 {[%emt 0:08:53]} 47. Re6 {[%emt 0:03:50]} Rc7+ {[%emt 0:01:47]} 48. Kb1 {[%emt 0:01:03]} Ra7 {[%emt 0:00:28]} 49. g4 {[%emt 0:07:38]} (49. h4 $142) 49... Kd5 $16 {[%emt 0:01:20]} 50. Rb6 {[%emt 0:01:42]} Ke4 {[%emt 0:03:13]} 51. h4 {[%emt 0:00:48]} Kf3 {[%emt 0:00:41]} 52. Rb4 {[%emt 0:02:50]} g6 $1 {[%emt 0:00:43]} 53. Kc2 {[%emt 0:05:35]} ({White should play} 53. Rb6 $16 Kxg4 54. Rxg6+ Kxh4 55. Rxh6+ Kg5 56. Rh2) 53... Kg3 $1 $11 {[%emt 0:00:10]} 54. h5 {[%emt 0:01:10]} gxh5 {[%emt 0:00:29]} 55. gxh5 {[%emt 0:00:01]} Ra5 {[%emt 0:00:06]} 56. Kc3 {[%emt 0:00:42]} Rc5+ {[%emt 0:00:45]} 57. Rc4 {[%emt 0:00:35]} Rxh5 {[%emt 0:00:07]} 58. Rxa4 {[%emt 0:00:05]} Rf5 $1 {[%emt 0:01:03]} 59. Ra8 {[%emt 0:00:50]} Rf3+ $2 {[%emt 0:00:30][%mdl 8192]} (59... h5 $11) 60. Kc2 $1 $18 {[%emt 0:00:45]} Rf2+ {[%emt 0:00:12] [#]} 61. Kb3 $1 {[%emt 0:00:29]} Rf3+ {[%emt 0:00:27] [#]} 62. Ka2 $1 {[%emt 0:00:34]} h5 {[%emt 0:00:05]} 63. Rg8+ {[%emt 0:00:22]} Kf2 {[%emt 0:01:18]} 64. Rh8 {[%emt 0:00:14]} Rf5 {[%emt 0:00:09]} 65. a4 {[%emt 0:00:31]} Kg3 {[%emt 0:00:00]} 66. b4 {[%emt 0:00:24]} h4 {[%emt 0:00:13]} 67. a5 {[%emt 0:00:18]} Rf4 {[%emt 0:00:37]} 68. Kb3 {[%emt 0:00:27]} h3 {[%emt 0:00:18]} 69. a6 {[%emt 0:00:58]} Rf3+ {[%emt 0:01:06]} 70. Ka4 {[%emt 0:00:53]} h2 {[%emt 0:01:14]} 71. a7 {[%emt 0:00:21]} Rf8 {[%emt 0:00:47]} 72. Rxh2 {[%emt 0:00:32]} Kxh2 {[%emt 0:00:18]} 73. b5 {[%emt 0:00:13]} Kg3 {[%emt 0:01:47]} 74. b6 {[%emt 0:00:23]} Kg4 {[%emt 0:00:28]} 75. b7 {[%emt 0:00:38]} Rf4+ {[%emt 0:00:09]} 76. Kb3 {[%emt 0:00:14]} 1-0

[Event "German Bundesliga 2024-25"]
[Site "Germany"]
[Date "2024.10.06"]
[Round "2.13"]
[White "Petrov, Martin"]
[Black "Shirov, Alexei"]
[Result "1-0"]
[Annotator "TA"]
[ECO "C11"]
[WhiteElo "2538"]
[BlackElo "2655"]
[PlyCount "75"]
[EventDate "2024.09.27"]
[EventType "team-tourn"]
[EventCountry "GER"]
[SourceTitle "playchess.com"]
[Source "ChessBase"]
[SourceQuality "1"]
[WhiteTeam "Deggendorf"]
[BlackTeam "Baden-Baden"]
[TimeControl "40/5400+30:1800+30"]

{[%evp 20,75,19,0,0,0,17,26,26,34,13,27,51,22,49,47,35,0,601,600,612,592,1004,1004,1005,997,1004,1004,997,997,965,958,1109,864,1456,1257,1246,1234,1234,555,520,596,596,587,615,610,583,477,623,583,674,656,707,712,678,677,622,632]} 1. e4 {[%emt 0:00:04][%cal Be2e4,Be4e5][%mdl 32]} e6 {[%emt 0:00:04]} 2. d4 {[%emt 0:00:16]} d5 {[%emt 0:00:04]} 3. Nc3 {[%emt 0:00:09]} Nf6 {[%emt 0:00:06]} 4. e5 {[%emt 0:00:06]} Nfd7 {[%emt 0:00:04]} 5. f4 {[%emt 0:00:58]} c5 {[%emt 0:00:38]} 6. Nf3 {[%emt 0:00:06]} Nc6 {[%emt 0:00:05]} 7. Be3 {[%emt 0:00:05]} cxd4 {[%emt 0:00:12]} 8. Nxd4 {[%emt 0:00:06]} Qb6 {[%emt 0:00:03]} 9. Qd2 {[%emt 0:03:39]} Qxb2 {[%emt 0:01:09]} 10. Rb1 {[%emt 0:00:05]} Qa3 {[%emt 0:00:06]} 11. Bb5 $1 {[%emt 0:00:08]} Nxd4 {[%emt 0:00:06]} 12. Bxd4 {[%emt 0:00:05][%cal Of4f5]} a6 {[%emt 0:00:05]} 13. Bxd7+ {[%emt 0:00:29]} Bxd7 {[%emt 0:00:05] White has an edge.} 14. Rb3 {[%emt 0:00:06]} Qe7 {[%emt 0:00:05]} ({Wrong is} 14... Qa5 $2 15. Bb6 $18 (15. Rxb7 Bb4 $17) (15. Rxb7 Bb4 $17)) 15. Rxb7 {[%emt 0:00:05]} Rc8 {[%emt 0:03:26][%cal Ba8c8,Bc8c5,Bc5d5][%mdl 32]} 16. O-O {[%emt 0:01:26]} Qd8 {[%emt 0:00:07] [#]} 17. f5 $1 $36 {[%emt 0:04:29][%mdl 2048] White fights for an advantage.} exf5 {[%emt 0:04:49]} 18. Rfb1 {[%emt 0:00:09]} (18. Nxd5 $2 {loses.} Bc6 $19) (18. Qd3 {looks sharper.} Rc6 19. Nxd5 Bc8 20. Bb6) 18... Bc5 {[%emt 0:21:39][%mdl 8192] White leaves nothing to chance now.} (18... Qa5 $11 19. Qe3 Be6) 19. Bxc5 $18 {[%emt 0:12:17] White is clearly winning.} Rxc5 {[%emt 0:00:07]} 20. Nxd5 {[%emt 0:06:19] Qd4 is the strong threat.} Bc8 {[%emt 0:36:13] Black is weak on the dark squares} 21. Re7+ {[%emt 0:02:52]} Kf8 {[%emt 0:00:05] [#]} 22. Qb4 $1 {[%emt 0:01:15]} Rxd5 {[%emt 0:00:15]} 23. Rd7+ {[%emt 0:00:38]} Ke8 {[%emt 0:00:35]} 24. Rxd8+ {[%emt 0:00:07]} Rxd8 {[%emt 0:00:04]} 25. Qc5 {[%emt 0:05:43]} h5 {[%emt 0:02:08]} 26. Rb8 {[%emt 0:00:58]} Bd7 {[%emt 0:00:10]} 27. Qc7 {[%emt 0:00:37][%csl Gb8][%cal Rc7d8]} Ke7 {[%emt 0:00:05]} 28. Qd6+ {[%emt 0:00:05]} Ke8 {[%emt 0:00:05]} 29. c4 {[%emt 0:05:07]} (29. Rxd8+ $142 Kxd8 30. Qb8+ (30. Qxa6 Rh6 $18) 30... Bc8 31. Qb6+ Ke8 32. Qc7) 29... Rh6 {[%emt 0:00:42]} 30. Rxd8+ {[%emt 0:00:06]} Kxd8 {[%emt 0:00:04][%mdl 4096] Endgame. KQ-KRB} 31. Qf8+ {[%emt 0:00:06]} Be8 {[%emt 0:00:05]} 32. Qxg7 {[%emt 0:00:49]} Rg6 {[%emt 0:00:21]} 33. Qh8 {[%emt 0:07:03]} Ke7 {[%emt 0:05:26]} 34. Qxh5 {[%emt 0:00:45]} Bc6 {[%emt 0:00:06]} 35. g3 {[%emt 0:00:13]} Be4 {[%emt 0:03:00]} 36. Qh4+ {[%emt 0:03:00]} Kd7 {[%emt 0:02:25]} 37. Kf2 {[%emt 0:02:12]} Rc6 {[%emt 0:00:18]} 38. Ke3 {[%emt 0:00:18] Weighted Error Value: White=0.36/Black=0.52.  Loses game:     	---       	Black=1      Inaccurate:     	White=1     	Black=1      OK:         	White=7     	Black=3      Best:        	White=2     	Black=2} 1-0

[Event "German Bundesliga 2024-25"]
[Site "Germany"]
[Date "2024.09.29"]
[Round "2.13"]
[White "Jovanovic, Zoran"]
[Black "Esipenko, Andrey"]
[Result "0-1"]
[Annotator "TA"]
[ECO "C48"]
[WhiteElo "2525"]
[BlackElo "2677"]
[PlyCount "174"]
[EventDate "2024.09.27"]
[EventType "team-tourn"]
[EventCountry "GER"]
[SourceTitle "playchess.com"]
[Source "ChessBase"]
[SourceQuality "1"]
[WhiteTeam "SK Kirchweyhe"]
[BlackTeam "Duesseldorfer SK"]
[TimeControl "40/5400+30:1800+30"]

{[%evp 94,174,0,0,0,-19,-20,-19,-27,-27,-11,-26,-26,-55,-56,-50,0,-8,0,0,0,0,0,0,0,0,0,0,0,-74,-74,-80,-80,-80,0,0,0,0,0,0,0,0,0,0,0,0,0,0,0,-8,-8,-14,-14,-14,-14,-117,-117,-117,-117,-5513,-1743,-4449,-4141,-2433,-8,-8,-8,-8,-8,-117,-118,-29961,-29964,-29965,-29966,-29970,-29971,-29976,-29977,-29977,-29978,-29990,-29973]} 1. e4 {[%emt 0:00:02]} e5 {[%emt 0:00:13]} 2. Nf3 {[%emt 0:00:10]} Nc6 {[%emt 0:00:08]} 3. Nc3 {[%emt 0:01:05]} Nf6 {[%emt 0:00:34]} 4. Bb5 {[%emt 0:00:11]} Bd6 {[%emt 0:02:03]} 5. d3 {[%emt 0:00:21]} O-O {[%emt 0:07:06]} 6. Bg5 {[%emt 0:12:41] C48: Four Knights: 4 Bb5, replies other than 4...Bb4.} h6 {[%emt 0:02:13] 6...a6 is vanishing.} 7. Bh4 {[%emt 0:00:20]} Nd4 {[%emt 0:00:37]} 8. Nxd4 {[%emt 0:04:31]} exd4 {[%emt 0:00:11]} 9. Nd5 {[%emt 0:00:01]} g5 {[%emt 0:00:28]} 10. Nxf6+ {[%emt 0:00:03]} Qxf6 {[%emt 0:00:07]} 11. Bg3 {[%emt 0:00:01]} Bxg3 {[%emt 0:03:50]} 12. hxg3 {[%emt 0:00:19]} c6 {[%emt 0:00:12]} 13. Bc4 {[%emt 0:00:08]} d5 {[%emt 0:03:09]} 14. Bb3 {[%emt 0:00:07]} a5 {[%emt 0:06:22]} 15. a4 {[%emt 0:03:40]} Kg7 $146 {[%emt 0:08:36]} ({Predecessor:} 15... dxe4 16. dxe4 Be6 17. Bxe6 fxe6 18. Qe2 e5 19. Ra3 Kg7 20. O-O Qe6 21. Qd2 c5 22. Rb3 {½-½ Hovhannisyan,R (2611)-Bluebaum,M (2647) Jermuk Avagyan Memorial 2024 (2)}) 16. exd5 {[%emt 0:27:44]} Re8+ {[%emt 0:03:14]} 17. Kf1 {[%emt 0:00:20]} cxd5 {[%emt 0:00:10]} 18. Qf3 {[%emt 0:00:50]} Qxf3 {[%emt 0:02:30]} 19. gxf3 {[%emt 0:00:04]} Be6 {[%emt 0:04:50]} 20. f4 {[%emt 0:06:10]} f6 {[%emt 0:02:43]} 21. fxg5 {[%emt 0:01:45]} fxg5 {[%emt 0:00:11]} 22. Kg2 {[%emt 0:01:04]} Bf7 {[%emt 0:00:54]} 23. g4 {[%emt 0:02:29]} Re7 {[%emt 0:08:32]} 24. Rae1 {[%emt 0:01:32]} Rae8 {[%emt 0:00:20]} 25. Rxe7 {[%emt 0:00:53]} Rxe7 {[%emt 0:00:02]} 26. Kf3 {[%emt 0:00:44]} Be8 {[%emt 0:12:44]} 27. Kg3 {[%emt 0:13:40]} Bc6 {[%emt 0:01:04]} 28. Rc1 {[%emt 0:00:25]} Re6 {[%emt 0:02:40]} 29. Rh1 {[%emt 0:04:40]} Re5 {[%emt 0:06:39]} 30. Kf3 {[%emt 0:02:40]} Kg6 {[%emt 0:02:06]} 31. Kg3 {[%emt 0:00:15]} Re6 {[%emt 0:00:26]} 32. Kg2 {[%emt 0:04:57]} Re5 {[%emt 0:03:38]} 33. Kg3 {[%emt 0:00:10]} Be8 {[%emt 0:00:26]} 34. Rc1 {[%emt 0:00:53]} Kf6 {[%emt 0:00:58]} 35. Rh1 {[%emt 0:00:14]} Kg7 {[%emt 0:00:07]} 36. Rc1 {[%emt 0:00:02]} Bf7 {[%emt 0:01:15]} 37. Kf3 {[%emt 0:02:05]} Re7 {[%emt 0:02:43]} 38. Ra1 {[%emt 0:02:15]} Bg8 {[%emt 0:06:12]} 39. Rc1 {[%emt 0:01:11]} Be6 {[%emt 0:00:49]} 40. Kg3 {[%emt 0:00:57]} Bf7 {[%emt 0:00:46]} 41. Kf3 {[%emt 0:30:31]} Re8 {[%emt 0:30:55]} 42. Ra1 {[%emt 0:00:36]} Kf6 {[%emt 0:06:37]} 43. Rh1 {[%emt 0:00:12]} Rh8 {[%emt 0:00:08]} 44. Kg3 {[%emt 0:00:41]} Ke5 {[%emt 0:00:33]} 45. Re1+ {[%emt 0:00:45]} Kd6 {[%emt 0:00:10]} 46. Rh1 {[%emt 0:00:08]} Be6 {[%emt 0:00:00]} 47. Rh2 {[%emt 0:00:00]} Bc8 {[%emt 0:00:00]} 48. Rh1 {[%emt 0:00:00]} Bd7 {[%emt 0:00:00]} 49. Rh5 {[%emt 0:00:00]} b5 {[%emt 0:00:00]} 50. axb5 {[%emt 0:00:00]} Bxb5 {[%emt 0:00:00]} 51. f4 {[%emt 0:00:00]} Be8 {[%emt 0:00:00]} 52. Rh1 {[%emt 0:00:00]} gxf4+ {[%emt 0:00:00]} 53. Kxf4 {[%emt 0:00:00]} a4 {[%emt 0:00:00]} 54. Ba2 {[%emt 0:00:00]} Kc5 {[%emt 0:00:00]} 55. Ke5 {[%emt 0:00:00]} Rg8 {[%emt 0:00:00]} 56. Rxh6 {[%emt 0:00:01]} Rxg4 {[%emt 0:00:00]} 57. Rh8 {[%emt 0:00:06]} Bd7 {[%emt 0:00:00]} 58. Rd8 {[%emt 0:01:02]} Rg5+ {[%emt 0:00:00]} 59. Kf6 {[%emt 0:00:22]} Rf5+ {[%emt 0:00:14]} 60. Kg6 {[%emt 0:00:07]} Be6 $1 {[%emt 0:00:10]} 61. Re8 {[%emt 0:01:49]} (61. Ra8 $11) 61... Kd6 $1 $17 {[%emt 0:00:41]} 62. Ra8 {[%emt 0:03:41]} Rf2 {[%emt 0:00:21]} 63. Rxa4 {[%emt 0:00:20]} Ke5 {[%emt 0:02:53]} (63... Rxc2 $17 64. Rxd4 Rxb2) 64. Bb3 $11 {[%emt 0:02:56]} Rg2+ {[%emt 0:01:02]} 65. Kh5 $1 {[%emt 0:00:01]} Bg4+ {[%emt 0:03:39]} 66. Kh4 {[%emt 0:02:02]} Bd1 {[%emt 0:00:25]} 67. Ra8 {[%emt 0:01:15]} Bxc2 {[%emt 0:01:35]} 68. Re8+ {[%emt 0:00:37]} Kf4 {[%emt 0:00:53]} 69. Rf8+ {[%emt 0:00:21]} Ke5 {[%emt 0:01:20]} 70. Re8+ {[%emt 0:00:08]} Kd6 {[%emt 0:00:24]} 71. Bxc2 {[%emt 0:02:46]} Rxc2 {[%emt 0:00:08]} 72. Rb8 {[%emt 0:00:03]} Rd2 {[%emt 0:00:36]} 73. Rb3 $1 {[%emt 0:00:01]} Rg2 {[%emt 0:00:30]} 74. Rb8 {[%emt 0:00:37]} (74. Kh3 $11 {remains equal.} Rg8 75. Rb7) 74... Ke5 $1 $17 {[%emt 0:00:32]} 75. Kh3 {[%emt 0:03:29]} Rd2 {[%emt 0:00:38]} 76. Kg4 $2 {[%emt 0:00:03][%mdl 8192]} (76. Kg3 $17) 76... Rxd3 $19 {[%emt 0:00:22]} 77. Re8+ {[%emt 0:00:23]} Kd6 {[%emt 0:00:09]} 78. Kf4 {[%emt 0:00:01] [#]} Rb3 $2 {[%emt 0:00:56]} (78... Rh3 $1 $19 {Hoping for ...d3.} 79. Rd8+ Kc6 80. Rc8+ Kb5) 79. Rd8+ $11 {[%emt 0:00:05]} Ke6 {[%emt 0:01:16]} 80. Re8+ {[%emt 0:00:54]} Kd7 {[%emt 0:00:48]} 81. Rh8 {[%emt 0:01:26] [#]} (81. Re1 $11 {keeps the balance.}) 81... Re3 $1 $17 {[%emt 0:00:13]} ({Of course not} 81... Rxb2 $6 82. Ke5 $11) 82. b4 $2 {[%emt 0:01:36][%mdl 8192]} (82. Rh6 $17) 82... Kc6 {[%emt 0:00:46]} 83. Rb8 {[%emt 0:00:35]} Re7 {[%emt 0:00:31]} 84. b5+ {[%emt 0:00:16]} Kc5 {[%emt 0:00:27]} 85. b6 {[%emt 0:00:05]} d3 {[%emt 0:00:23]} 86. Rc8+ {[%emt 0:00:54]} Kd4 {[%emt 0:00:29]} 87. Rc7 {[%emt 0:00:54]} Re1 {[%emt 0:00:19]} 0-1

[Event "German Bundesliga 2024-25"]
[Site "Germany"]
[Date "2024.10.06"]
[Round "2.13"]
[White "Neuman, Petr"]
[Black "Van Foreest, Lucas"]
[Result "1/2-1/2"]
[Annotator "TA"]
[ECO "D37"]
[WhiteElo "2422"]
[BlackElo "2522"]
[PlyCount "42"]
[EventDate "2024.09.27"]
[EventType "team-tourn"]
[EventCountry "GER"]
[SourceTitle "playchess.com"]
[Source "ChessBase"]
[SourceQuality "1"]
[WhiteTeam "Bad Mergentheim"]
[BlackTeam "Werder Bremen"]
[TimeControl "40/5400+30:1800+30"]

{[%evp 9,42,31,37,29,34,22,47,37,25,28,30,7,17,-2,-3,0,16,-15,-13,-8,16,12,19,15,14,15,13,10,12,15,35,14,18,11,33]} 1. c4 {[%emt 0:00:05]} e6 {[%emt 0:00:20]} 2. Nc3 {[%emt 0:00:11]} d5 {[%emt 0:00:10]} 3. d4 {[%emt 0:00:07]} h6 {[%emt 0:01:48]} 4. Nf3 {[%emt 0:08:01]} Nf6 {[%emt 0:00:10]} 5. g3 {[%emt 0:00:59]} Nc6 {[%emt 0:01:55]} 6. Bg2 {[%emt 0:01:51]} Bd6 {[%emt 0:00:29]} 7. O-O {[%emt 0:03:19]} O-O {[%emt 0:00:07]} 8. b3 {[%emt 0:02:58][%cal Bb2b3,Bb3c4][%mdl 32] White is slightly better.} dxc4 {[%emt 0:00:13]} 9. bxc4 {[%emt 0:00:05]} e5 {[%emt 0:00:09]} 10. d5 {[%emt 0:08:08]} Na5 {[%emt 0:10:14]} 11. Qa4 {[%emt 0:11:52]} b6 {[%emt 0:23:04]} 12. c5 {[%emt 0:00:18]} Bd7 {[%emt 0:03:38]} 13. Qc2 {[%emt 0:12:43]} (13. c6 {looks sharper.} Nxd5 14. cxd7 Nxc3 15. Qc2) 13... bxc5 {[%emt 0:00:42]} 14. Nd2 {[%emt 0:00:06]} Qc8 {[%emt 0:11:33]} 15. Nce4 {[%emt 0:02:18]} Nxe4 {[%emt 0:00:06]} 16. Nxe4 {[%emt 0:00:14]} Nb7 {[%emt 0:00:29]} 17. Be3 {[%emt 0:02:46]} f5 {[%emt 0:00:26]} 18. Nxc5 {[%emt 0:00:14]} Nxc5 {[%emt 0:00:11]} 19. Bxc5 {[%emt 0:00:06]} Qa6 {[%emt 0:00:26]} 20. e4 {[%emt 0:08:24]} Bb5 {[%emt 0:03:44]} 21. Rfe1 {[%emt 0:00:16]} Bc4 {[%emt 0:01:50] Weighted Error Value: White=0.08 (flawless) /Black=0.04 (flawless) .  Inaccurate:     	White=1     	---        OK:         	White=8     	Black=8} 1/2-1/2

[Event "German Bundesliga 2024-25"]
[Site "Germany"]
[Date "2024.09.29"]
[Round "2.14"]
[White "Sadhwani, Raunak"]
[Black "Van den Doel, Erik"]
[Result "1-0"]
[Annotator "TA"]
[ECO "C54"]
[WhiteElo "2659"]
[BlackElo "2561"]
[PlyCount "67"]
[EventDate "2024.09.27"]
[EventType "team-tourn"]
[EventCountry "GER"]
[SourceTitle "playchess.com"]
[Source "ChessBase"]
[SourceQuality "1"]
[WhiteTeam "Duesseldorfer SK"]
[BlackTeam "SK Kirchweyhe"]
[TimeControl "40/5400+30:1800+30"]

{[%evp 12,67,17,7,24,13,27,23,29,24,18,12,19,5,10,25,29,27,34,24,30,24,34,24,44,49,56,22,62,33,39,19,68,25,31,30,31,37,41,27,54,6,83,84,111,101,350,170,190,155,260,260,286,261,479,476,445,431]} 1. e4 {[%emt 0:00:01]} e5 {[%emt 0:03:19]} 2. Nf3 {[%emt 0:00:05]} Nc6 {[%emt 0:00:05]} 3. Bc4 {[%emt 0:00:03]} Bc5 {[%emt 0:00:05]} 4. O-O {[%emt 0:00:06]} Nf6 {[%emt 0:00:04]} 5. d3 {[%emt 0:00:06]} h6 {[%emt 0:00:36]} 6. c3 {[%emt 0:00:14]} d6 {[%emt 0:00:06]} 7. Re1 {[%emt 0:00:45]} (7. b4 $5 Bb6 $8 8. Nbd2 $11) 7... O-O {[%emt 0:00:36]} 8. Nbd2 {[%emt 0:00:29][%cal Bb1d2,Bd2f1,Bf1g3][%mdl 32]} a6 {[%emt 0:01:11]} 9. Nf1 {[%emt 0:00:10]} Ba7 {[%emt 0:05:38] White has an edge.} 10. Ng3 {[%emt 0:07:24]} Na5 {[%emt 0:00:51]} 11. Bb3 {[%emt 0:00:06]} Nxb3 {[%emt 0:00:07]} 12. axb3 {[%emt 0:00:02]} Bg4 {[%emt 0:30:33]} 13. h3 {[%emt 0:00:33]} Bxf3 {[%emt 0:02:17]} 14. Qxf3 {[%emt 0:00:03][%cal Od3d4]} Nh7 {[%emt 0:00:28]} 15. Rf1 {[%emt 0:06:53]} (15. Nf5 {with more complications.} Ng5 16. Qg4 Kh7 17. b4) 15... Kh8 {[%emt 0:05:30]} 16. Kh1 {[%emt 0:01:06]} Qd7 {[%emt 0:13:01]} 17. Nf5 {[%emt 0:03:05]} h5 {[%emt 0:05:25] Prevents Qg4.} 18. Qg3 {[%emt 0:04:28][%csl Gf5][%cal Rg3g7] [#]} (18. Qxh5 g6 19. Qf3 gxf5 20. exf5 d5 $11 (20... Rg8 21. Ra4 $17)) 18... g6 {[%emt 0:00:24]} 19. Ne3 {[%emt 0:00:06]} (19. Nh6 {seems wilder.} Kg7 20. b4 c6 21. Be3) 19... c6 {[%emt 0:09:32]} 20. Bd2 {[%emt 0:11:00]} Rae8 {[%emt 0:01:29]} 21. c4 {[%emt 0:00:56]} Bxe3 {[%emt 0:05:49]} (21... Bd4 $11) 22. Bxe3 {[%emt 0:03:33]} (22. fxe3 Kg7 $11) 22... g5 {[%emt 0:00:04]} 23. d4 {[%emt 0:01:26]} (23. Bxg5 Rg8 24. f4 exf4 $19) 23... f5 {[%emt 0:06:39]} 24. exf5 {[%emt 0:00:20]} (24. Bxg5 $2 f4 25. Bxf4 (25. Qh4 $2 Qg7 $19) 25... Rxf4 26. dxe5 dxe5 $19) 24... Qxf5 {[%emt 0:00:03]} 25. dxe5 {[%emt 0:03:16]} dxe5 {[%emt 0:00:13]} 26. Ra5 {[%emt 0:01:07]} (26. Bd2 $14) 26... Qd3 {[%emt 0:01:37] [#]} (26... Nf6 $11) 27. Re1 $1 $16 {[%emt 0:01:56]} (27. Bxg5 $2 {loses.} Qxg3 (27... Qxf1+ $2 28. Kh2 $19) 28. Be3 Qxe3 29. fxe3 Rxf1+ $19) 27... h4 {[%emt 0:04:51]} 28. Qg4 {[%emt 0:00:16][%cal Oa5e5] Hoping for Rxe5!} Rf6 $2 {[%emt 0:01:45] A mistake that costs the game.} (28... Qf5 $16 {was worth a try.}) 29. Bxg5 {[%emt 0:05:10]} (29. Bd4 $142 Qxd4 30. Qxd4 exd4 31. Rxe8+ Kg7 32. Kg1) 29... Rxf2 $18 {[%emt 0:00:16]} 30. Qxh4 {[%emt 0:02:09]} Rf1+ {[%emt 0:02:23]} (30... Qc2 $16 31. Qg3 (31. Raxe5 Rxe5 32. Qd4 Qxb2 $16) 31... Rf5) 31. Rxf1 {[%emt 0:00:05]} Qxf1+ {[%emt 0:00:02]} 32. Kh2 {[%emt 0:00:09]} b5 $2 {[%emt 0:00:51]} (32... Re6 {might work better.} 33. Rxe5 Rxe5) 33. Rxa6 {[%emt 0:01:47] Ra7 would kill now.} Rg8 {[%emt 0:00:05]} 34. Ra7 $1 {[%emt 0:00:10] Weighted Error Value: White=0.18 (very precise) /Black=0.44.  Loses game:     	---       	Black=1      Mistake:       	White=2     	Black=4      Inaccurate:     	White=3     	Black=3      OK:         	White=10    	Black=7      Best:        	White=1     	Black=1      Strong:       	White=2     	---} 1-0